fUSD/lending_fUSD_20260106
["ID","MTS","AMOUNT","RATE_DAILY","PERIOD"]
[400596715,1767738632342,-3286.61912463,0.0001764,2]
[400596717,1767738632353,-4239.57537948,0.0001764,2]
[400596719,1767738632364,-151.0,0.00017867,2]
[400596721,1767738632373,-151.0,0.00017867,2]
[400596723,1767738632383,-550.0,0.00017899,2]
[400596725,1767738632392,-168.7294,0.000179,2]
[400596726,1767738632401,-5546.62,0.000179,2]
[400596728,1767738632411,-2500.0,0.000179,2]
[400596730,1767738632420,-500.13510641,0.000179,2]
[400596733,1767738632432,-9943.88196685,0.000179,2]
[400596735,1767738632441,-9943.88196677,0.00017901,2]
[400596737,1767738632451,-500.0,0.00017973,2]
[400596739,1767738632460,-311.0243279,0.00017973,2]
[400596741,1767738632469,-500.0,0.00017973,2]
[400596742,1767738632478,-165.79599831,0.00017973,2]
[400596744,1767738632487,-500.0,0.00017973,2]
[400596746,1767738632497,-500.0,0.00017973,2]
[400596748,1767738632506,-316.26386303,0.00017973,2]
[400596750,1767738632516,-504.5156651,0.00017973,2]
[400596752,1767738632525,-501.25433078,0.00017973,2]
[400596754,1767738632539,-500.0,0.00017973,2]
[400596756,1767738632548,-500.0,0.00017973,2]
[400596758,1767738632557,-500.0,0.00017973,2]
[400596760,1767738632566,-500.0,0.00017973,2]
[400596762,1767738632575,-500.0,0.00017973,2]
[400596764,1767738632584,-505.45524994,0.0001799,2]
[400596766,1767738632593,-505.45524994,0.0001799,2]
[400596768,1767738632603,-505.45524994,0.0001799,2]
[400596770,1767738632612,-788.02746761,0.00017999,2]
[400596773,1767738632621,-500.0,0.00017999,2]
[400596774,1767738632636,-168.85317975,0.00017999,2]
[400596776,1767738632646,-500.0,0.00017999,2]
[400596778,1767738632655,-164.94254701,0.00017999,2]
[400596780,1767738632664,-500.0,0.00017999,2]
[400596782,1767738632674,-426.79459025,0.00017999,2]
[400596783,1767738632683,-500.0,0.00017999,2]
[400596784,1767738632692,-500.0,0.00017999,2]
[400596785,1767738632703,-500.0,0.00017999,2]
[400596786,1767738632711,-500.0,0.00017999,2]
[400596787,1767738632720,-369.532319,0.00017999,2]
[400596788,1767738632728,-500.0,0.00017999,2]
[400596789,1767738632737,-527.54503259,0.00017999,2]
[400596790,1767738632746,-500.0,0.00017999,2]
[400596791,1767738632754,-500.0,0.00017999,2]
[400596792,1767738632763,-500.0,0.00017999,2]
[400596793,1767738632772,-500.0,0.00017999,2]
[400596794,1767738632780,-367.76431038,0.00017999,2]
[400596795,1767738632789,-500.0,0.00017999,2]
[400596796,1767738632799,-500.0,0.00017999,2]
[400596797,1767738632808,-500.0,0.00017999,2]
[400596799,1767738632817,-500.0,0.00017999,2]
[400596801,1767738632826,-500.0,0.00017999,2]
[400596802,1767738632836,-500.0,0.00017999,2]
[400596803,1767738632846,-500.0,0.00017999,2]
[400596804,1767738632855,-500.0,0.00017999,2]
[400596805,1767738632865,-500.0,0.00017999,2]
[400596806,1767738632874,-498.5397739,0.00017999,2]
[400596807,1767738632883,-500.0,0.00017999,2]
[400596808,1767738632893,-500.0,0.00017999,2]
[400596809,1767738632913,-500.0,0.00017999,2]
[400596810,1767738632923,-500.0,0.00017999,2]
[400596811,1767738632932,-500.0,0.00017999,2]
[400596812,1767738632942,-500.0,0.00017999,2]
[400596813,1767738632952,-500.0,0.00017999,2]
[400596814,1767738632964,-500.0,0.00017999,2]
[400596815,1767738632975,-500.0,0.00017999,2]
[400596816,1767738632984,-500.0,0.00017999,2]
[400596817,1767738632994,-500.0,0.00017999,2]
[400596818,1767738633003,-500.0,0.00017999,2]
[400596819,1767738633012,-500.0,0.00017999,2]
[400596820,1767738633021,-500.0,0.00017999,2]
[400596821,1767738633031,-500.0,0.00017999,2]
[400596822,1767738633040,-500.0,0.00017999,2]
[400596823,1767738633221,-500.0,0.00017999,2]
[400596824,1767738633236,-500.0,0.00017999,2]
[400596825,1767738633246,-500.0,0.00017999,2]
[400596826,1767738633255,-500.0,0.00017999,2]
[400596827,1767738633264,-500.0,0.00017999,2]
[400596828,1767738633274,-500.0,0.00017999,2]
[400596829,1767738633283,-531.05590817,0.00017999,2]
[400596830,1767738633293,-500.0,0.00017999,2]
[400596831,1767738633302,-500.0,0.00017999,2]
[400596832,1767738633311,-500.0,0.00017999,2]
[400596833,1767738633320,-500.0,0.00017999,2]
[400596834,1767738633329,-500.0,0.00017999,2]
[400596835,1767738633338,-500.0,0.00017999,2]
[400596836,1767738633348,-500.0,0.00017999,2]
[400596837,1767738633358,-500.0,0.00017999,2]
[400596838,1767738633368,-500.0,0.00017999,2]
[400596839,1767738633377,-500.0,0.00017999,2]
[400596840,1767738633386,-500.0,0.00017999,2]
[400596841,1767738633395,-500.0,0.00017999,2]
[400596842,1767738633405,-500.0,0.00017999,2]
[400596843,1767738633415,-500.0,0.00017999,2]
[400596844,1767738633425,-500.0,0.00017999,2]
[400596845,1767738633437,-500.0,0.00017999,2]
[400596846,1767738633446,-500.0,0.00017999,2]
[400596847,1767738633456,-500.0,0.00017999,2]
[400596848,1767738633466,-500.0,0.00017999,2]
[400596849,1767738633475,-500.0,0.00017999,2]
[400596850,1767738633484,-500.0,0.00017999,2]
[400596851,1767738633493,-584.59580257,0.00017999,2]
[400596852,1767738633503,-500.0,0.00017999,2]
[400596853,1767738633512,-500.0,0.00017999,2]
[400596854,1767738633521,-500.0,0.00017999,2]
[400596855,1767738633531,-500.0,0.00017999,2]
[400596856,1767738633540,-500.0,0.00017999,2]
[400596857,1767738633549,-500.0,0.00017999,2]
[400596858,1767738633559,-500.0,0.00017999,2]
[400596859,1767738633568,-300.0,0.00017999,2]
[400596860,1767738633577,-500.0,0.00017999,2]
[400596861,1767738633586,-500.0,0.00017999,2]
[400596862,1767738633595,-500.0,0.00017999,2]
[400596863,1767738633605,-500.0,0.00017999,2]
[400596864,1767738633614,-500.0,0.00017999,2]
[400596865,1767738633625,-3295750.81164349,0.00018,2]
[400596866,1767738633636,-101995.72663446,0.00018,2]
[400596867,1767738634161,-806.80112719,0.00018,2]
[400596868,1767738634172,-271.33491036,0.00018,2]
[400596869,1767738634182,-13479.63258062,0.00018,2]
[400596870,1767738634191,-20672.87785632,0.00018,2]
[400596871,1767738634202,-23228.84710341,0.00018,2]
[400596890,1767738638483,-9943.88196677,0.00017901,2]
[400596892,1767738638493,-178.61513244,0.00017906,3]
[400596894,1767738638502,-9641.29008608,0.00018,2]
[400596897,1767738638525,-604.0,0.00018,2]
[400596899,1767738638539,-992.41393817,0.00018,2]
[400596902,1767738638553,-522.61684593,0.00018,2]
[400596904,1767738638567,-7543.64981117,0.00018,2]
[400596909,1767738638603,-2804290.55082489,0.00018,2]
[400596911,1767738638613,-3907.7803606,0.00018006,2]
[400596913,1767738638623,-188.35701994,0.00018106,2]
[400596915,1767738638635,-243.20475844,0.00018273,2]
[400596917,1767738638644,-344.39263039,0.00018306,2]
[400596919,1767738638654,-4119.72,0.00018382,2]
[400596921,1767738638663,-1000.0,0.00018406,2]
[400596923,1767738638674,-1000.0,0.00018521,2]
[400596925,1767738638684,-480.04186632,0.00018521,2]
[400596927,1767738638694,-500.0,0.00018521,2]
[400596929,1767738638707,-500.0,0.00018521,2]
[400596930,1767738638716,-500.0,0.00018521,2]
[400596932,1767738638726,-502.72217232,0.00018521,2]
[400596934,1767738638735,-500.0,0.00018521,2]
[400596936,1767738638744,-500.0,0.00018521,2]
[400596938,1767738638753,-500.0,0.00018521,2]
[400596940,1767738638763,-500.0,0.00018705,2]
[400596942,1767738638772,-500.0,0.00018705,2]
[400596944,1767738638782,-500.0,0.00018705,2]
[400596946,1767738638792,-500.0,0.00018705,2]
[400596948,1767738638801,-500.0,0.00018705,2]
[400596950,1767738638810,-500.0,0.00018705,2]
[400596952,1767738638820,-500.0,0.00018705,2]
[400596954,1767738638829,-500.0,0.00018705,2]
[400596956,1767738638838,-500.0,0.00018705,2]
[400596958,1767738638848,-500.0,0.00018705,2]
[400596960,1767738638857,-500.0,0.00018806,2]
[400596962,1767738638867,-500.0,0.00018806,2]
[400596964,1767738638876,-500.0,0.00018806,2]
[400596966,1767738638886,-500.0,0.00018806,2]
[400596968,1767738638896,-34728.81,0.00018827,2]
[400596970,1767738638905,-373.0,0.00018991,2]
[400596973,1767738638915,-1500.0,0.00019068,2]
[400596974,1767738638925,-420.0,0.00019253,2]
[400596977,1767738638934,-420.0,0.00019253,2]
[400596979,1767738638948,-1680.0,0.00019348,2]
[400596981,1767738638958,-600.0,0.00019403,2]
[400596983,1767738638967,-250.0,0.00019403,2]
[400596985,1767738638977,-250.0,0.00019403,2]
[400596987,1767738638987,-500.13510635,0.00019614,2]
[400596989,1767738638996,-696.5528361,0.00019616,2]
[400596991,1767738639006,-567.27927979,0.00019788,2]
[400596993,1767738639016,-161953.1274176,0.0001995,15]
[400596995,1767738639026,-506.60230757,0.00019973,2]
[400596996,1767738639036,-500.0,0.00019973,2]
[400596999,1767738639046,-639.59042404,0.00019973,2]
[400597001,1767738639055,-500.0,0.00019973,2]
[400597003,1767738639068,-506.39418911,0.00019973,2]
[400597005,1767738639077,-500.0,0.00019973,2]
[400597007,1767738639087,-500.0,0.00019973,2]
[400597009,1767738639097,-524.74378728,0.00019973,2]
[400597011,1767738639106,-500.0,0.00019973,2]
[400597013,1767738639116,-500.0,0.00019973,2]
[400597015,1767738639125,-500.0,0.00019973,2]
[400597017,1767738639134,-500.0,0.00019973,2]
[400597019,1767738639144,-500.0,0.00019973,2]
[400597021,1767738639153,-372.49405725,0.00019973,2]
[400597023,1767738639163,-349.75332306,0.00019973,2]
[400597025,1767738639172,-500.0,0.00019973,2]
[400597027,1767738639181,-500.0,0.00019973,2]
[400597029,1767738639191,-500.0,0.00019973,2]
[400597031,1767738639201,-500.0,0.00019973,2]
[400597032,1767738639210,-500.0,0.00019973,2]
[400597033,1767738639220,-500.0,0.00019973,2]
[400597034,1767738639230,-500.0,0.00019973,2]
[400597035,1767738639239,-500.0,0.00019973,2]
[400597036,1767738639248,-500.0,0.00019973,2]
[400597037,1767738639258,-500.0,0.00019973,2]
[400597038,1767738639268,-500.0,0.00019973,2]
[400597039,1767738639278,-500.0,0.00019973,2]
[400597040,1767738639287,-469.49140295,0.00019973,2]
[400597041,1767738639297,-554.45007798,0.00019973,2]
[400597042,1767738639306,-500.0,0.00019973,2]
[400597043,1767738639316,-500.0,0.00019973,2]
[400597044,1767738639325,-500.0,0.00019973,2]
[400597045,1767738639335,-640.98789269,0.00019973,2]
[400597046,1767738639345,-426.78,0.00019973,2]
[400597048,1767738639355,-1463.61091402,0.0002,5]
[400597050,1767738639364,-37267.36681425,0.0002,5]
[400597052,1767738639374,-8300.0,0.0002,4]
[400597054,1767738639383,-370.82306574,0.0002,20]
[400597056,1767738639392,-20122.74280441,0.0002,14]
[400597058,1767738639402,-165.52157161,0.0002,20]
[400597060,1767738639412,-4571.34107259,0.0002,3]
[400597062,1767738639421,-496.69513219,0.0002,10]
[400597064,1767738639432,-1557.97021985,0.0002,2]
[400597066,1767738639442,-1000.0,0.0002,7]
[400597068,1767738639451,-426.78,0.00020247,2]
[400597070,1767738639461,-500.0,0.00020305,2]
[400597072,1767738639472,-1994.8,0.00020456,2]
[400597074,1767738639481,-1000.0,0.00020521,2]
[400597076,1767738639490,-500.0,0.00020521,2]
[400597078,1767738639499,-500.0,0.00020521,2]
[400597080,1767738639509,-1000.0,0.00020521,2]
[400597082,1767738639518,-1000.0,0.00020521,2]
[400597084,1767738639527,-1000.0,0.00020521,2]
[400597086,1767738639536,-1007.04300931,0.00020521,2]
[400597088,1767738639545,-500.9665977,0.00020521,2]
[400597090,1767738639555,-1000.0,0.00020521,2]
[400597092,1767738639564,-1000.0,0.00020521,2]
[400597095,1767738639574,-676.92971067,0.00020521,2]
[400597096,1767738639584,-1000.0,0.00020521,2]
[400597099,1767738639593,-1000.0,0.00020521,2]
[400597101,1767738639603,-910.11880643,0.00020521,2]
[400597103,1767738639613,-1000.0,0.00020521,2]
[400597105,1767738639624,-164.1404911,0.00020521,2]
[400597106,1767738639639,-511.19854706,0.00020521,2]
[400597108,1767738639649,-964.58917945,0.00020521,2]
[400597110,1767738639659,-199.12605601,0.00020521,2]
[400597112,1767738639669,-1000.0,0.00020521,2]
[400597115,1767738639679,-426.78,0.00020521,2]
[400597116,1767738639687,-426.78,0.00020795,2]
[400597118,1767738639699,-57345.91,0.00020841,2]
[400597121,1767738639712,-9917.98808771,0.000209,30]
[400597123,1767738639721,-8526.77,0.00020905,2]
[400597125,1767738639731,-150.30279001,0.00020973,2]
[400597127,1767738639741,-127519.24258494,0.0002099,2]
[400597129,1767738639751,-20000.0,0.00021,2]
[400597131,1767738639760,-1191.16510258,0.00021,2]
[400597133,1767738639769,-196.61170439,0.00021,2]
[400597135,1767738639778,-160.0,0.00021,7]
[400597137,1767738639788,-587.0,0.00021015,2]
[400597139,1767738639797,-587.0,0.00021015,2]
[400597142,1767738639806,-426.81,0.00021068,2]
[400597144,1767738639816,-942.83978785,0.00021068,2]
[400597146,1767738639827,-1104.07917828,0.00021068,2]
[400597148,1767738639836,-1500.0,0.00021068,2]
[400597150,1767738639846,-1500.0,0.00021068,2]
[400597153,1767738639855,-1500.0,0.00021068,2]
[400597155,1767738639866,-853.46773624,0.00021068,2]
[400597157,1767738639875,-1500.0,0.00021068,2]
[400597159,1767738639886,-700.0,0.00021068,2]
[400597161,1767738639895,-154.52,0.00021121,2]
[400597163,1767738639904,-292.59,0.0002117,2]
[400597165,1767738639914,-3229.73,0.00021192,2]
[400597166,1767738639923,-2351.0,0.00021223,2]
[400597168,1767738639932,-500.13510635,0.00021329,2]
[400597170,1767738639942,-999.0,0.00021411,3]
[400597172,1767738639951,-57438.65090699,0.000215,2]
[400597173,1767738639960,-221.7670119,0.000215,2]
[400597174,1767738639969,-555.32695462,0.00021616,2]
[400597175,1767738639979,-2000.0,0.00021616,2]
[400597176,1767738639989,-2000.0,0.00021616,2]
[400597177,1767738639998,-1482.50971667,0.00021616,2]
[400597178,1767738640007,-5000.0,0.00021918,2]
[400597179,1767738640016,-500.0,0.00021918,2]
[400597180,1767738640026,-500.0,0.00021918,2]
[400597181,1767738640035,-500.0,0.00021918,2]
[400597182,1767738640044,-602.29143562,0.00021918,2]
[400597183,1767738640054,-500.0,0.00021918,2]
[400597184,1767738640063,-500.0,0.00021918,2]
[400597185,1767738640072,-500.0,0.00021918,2]
[400597186,1767738640082,-500.0,0.00021918,2]
[400597187,1767738640091,-500.0,0.00021918,2]
[400597188,1767738640101,-500.0,0.00021918,2]
[400597189,1767738640110,-500.0,0.00021918,2]
[400597190,1767738640119,-500.0,0.00021918,2]
[400597191,1767738640129,-500.0,0.00021918,2]
[400597192,1767738640138,-500.0,0.00021918,2]
[400597193,1767738640147,-500.0,0.00021918,2]
[400597194,1767738640157,-500.0,0.00021918,2]
[400597195,1767738640166,-500.0,0.00021918,2]
[400597196,1767738640175,-368743.64605885,0.00022,4]
[400597197,1767738640185,-796.24110571,0.00022,7]
[400597198,1767738640195,-163.53,0.00022,2]
[400597199,1767738640204,-4101.09,0.00022,7]
[400597200,1767738640214,-81894.78047147,0.00022,2]
[400597201,1767738640230,-5848.48952853,0.00022,2]
[400597202,1767738640239,-723.87750839,0.00022164,2]
[400597203,1767738640249,-2500.0,0.00022164,2]
[400597204,1767738640259,-3229.73,0.00022251,2]
[400597205,1767738640269,-154.52,0.00022441,2]
[400597206,1767738640279,-1994.8,0.0002255,2]
[400597207,1767738640289,-1896.75431619,0.00022712,2]
[400597208,1767738640299,-823.0,0.00022938,2]
[400597209,1767738640308,-624.0,0.00022938,2]
[400597210,1767738640319,-634.47337124,0.00023,7]
[400597211,1767738640328,-552.45242198,0.00023,2]
[400597212,1767738640338,-500.13510635,0.00023043,2]
[400597213,1767738640348,-12693.16,0.00023241,2]
[400597214,1767738640359,-3292.0,0.00023279,2]
[400597215,1767738640369,-250.0,0.00023308,2]
[400597216,1767738640379,-3229.73,0.00023311,2]
[400597217,1767738640388,-154.52,0.00023761,2]
[400597218,1767738640398,-13334.25092018,0.00024,2]
[400597219,1767738640408,-1019.54915216,0.00024,2]
[400597220,1767738640418,-878.51595379,0.00024,30]
[400597221,1767738640584,-3229.73,0.0002437,2]
[400597222,1767738640612,-5176.1897,0.00024599,2]
[400597223,1767738640622,-167.87682573,0.000246,2]
[400597224,1767738640635,-4101.09,0.000246,7]
[400597225,1767738640644,-87743.27,0.000246,2]
[400597226,1767738640653,-1994.8,0.00024644,2]
[400597227,1767738640663,-167.3160803,0.0002465,2]
[400597228,1767738640674,-187.15,0.00024658,2]
[400597229,1767738640683,-1000.0,0.00024658,2]
[400597230,1767738640693,-250.92,0.00024658,4]
[400597231,1767738640703,-713.73028182,0.00024658,4]
[400597232,1767738640711,-300.0,0.00024699,10]
[400597233,1767738640721,-300.0,0.00024699,10]
[400597234,1767738640730,-666.0,0.00024699,2]
[400597235,1767738640739,-1000000.0,0.000247,2]
[400597236,1767738640749,-1151.94153626,0.000247,2]
[400597237,1767738640758,-151.0,0.000247,7]
[400597238,1767738640767,-151.0,0.000247,7]
[400597239,1767738640776,-151.0,0.000247,7]
[400597240,1767738640786,-151.0,0.000247,7]
[400597241,1767738640795,-151.0,0.000247,7]
[400597242,1767738640804,-151.0,0.000247,7]
[400597243,1767738640814,-151.0,0.000247,7]
[400597244,1767738640823,-151.0,0.000247,7]
[400597245,1767738640832,-358.665808,0.000247,7]
[400597246,1767738640841,-358.665808,0.000247,7]
[400597247,1767738640850,-358.665808,0.000247,7]
[400597248,1767738640860,-358.665808,0.000247,7]
[400597249,1767738640869,-151.0,0.000247,7]
[400597250,1767738640878,-500.13510635,0.00024757,2]
[400597251,1767738640887,-300.0,0.00024799,10]
[400597252,1767738640896,-300.0,0.00024799,10]
[400597253,1767738640905,-666.0,0.00024799,2]
[400597254,1767738640915,-500.0,0.00024799,2]
[400597255,1767738640925,-500.0,0.00024799,2]
[400597256,1767738640934,-500.0,0.00024799,2]
[400597257,1767738640944,-324.80255636,0.00024799,2]
[400597258,1767738640955,-500.0,0.00024799,2]
[400597259,1767738640965,-500.0,0.00024799,2]
[400597260,1767738640974,-500.0,0.00024799,2]
[400597261,1767738640983,-500.0,0.00024799,2]
[400597262,1767738640992,-353.48680987,0.00024799,2]
[400597263,1767738641001,-365726.02152,0.000248,3]
[400597264,1767738641011,-500.0,0.00024899,2]
[400597265,1767738641020,-500.0,0.00024899,2]
[400597266,1767738641030,-500.0,0.00024899,2]
[400597267,1767738641039,-300.0,0.00024899,10]
[400597268,1767738641048,-300.0,0.00024899,10]
[400597269,1767738641057,-352309.321317,0.000249,3]
[400597270,1767738641066,-7338.70391394,0.00025,5]
[400597271,1767738641075,-170.24883339,0.00025,5]
[400597272,1767738641084,-531.0,0.00025,5]
[400597273,1767738641093,-1152.0,0.00025037,2]
[400597274,1767738641103,-154.52,0.00025081,2]
[400597275,1767738641112,-3229.73,0.0002543,2]
[400597276,1767738641122,-4609.0,0.00025535,2]
[400597277,1767738641131,-53819.74898989,0.00025999,14]
[400597278,1767738641141,-154.52,0.00026402,2]
[400597279,1767738641150,-300.0,0.00026499,10]
[400597280,1767738641160,-300.0,0.00026499,10]
[400597281,1767738641169,-1994.8,0.00026737,2]
[400597282,1767738641178,-168.0,0.00026916,2]
[400597283,1767738641191,-168.0,0.00026961,2]
[400597284,1767738641200,-168.0,0.00026968,2]
[400597285,1767738641210,-163.75394219,0.00027,2]
[400597286,1767738641219,-465.27998329,0.00027,30]
[400597287,1767738641229,-442.24,0.00027021,2]
[400597288,1767738641238,-168.0,0.00027118,2]
[400597289,1767738641248,-87743.27,0.000272,2]
[400597290,1767738641258,-665.0,0.00027284,7]
[400597291,1767738641268,-442.24,0.00027295,2]
[400597292,1767738641278,-4101.09,0.000273,7]
[400597293,1767738641288,-1338.0,0.00027329,2]
[400597294,1767738641298,-666.0,0.00027341,7]
[400597295,1767738641308,-168.0,0.00027346,2]
[400597296,1767738641317,-150.0,0.00027369,2]
[400597297,1767738641327,-4392.1836343,0.0002739,7]
[400597298,1767738641337,-334.56,0.00027397,24]
[400597299,1767738641346,-424.6,0.00027397,2]
[400597300,1767738641355,-951.64037576,0.00027397,17]
[400597301,1767738641365,-386.6,0.00027397,4]
[400597302,1767738641374,-246.069034,0.00027397,7]
[400597303,1767738641384,-613.8,0.00027397,30]
[400597304,1767738641394,-151.0,0.00027397,7]
[400597305,1767738641403,-158.77343996,0.00027397,5]
[400597306,1767738641413,-150.0,0.00027397,5]
[400597307,1767738641423,-666.0,0.00027479,2]
[400597308,1767738641432,-168.0,0.00027534,2]
[400597309,1767738641442,-442.24,0.00027569,2]
[400597310,1767738641451,-168.0,0.00027622,2]
[400597311,1767738641463,-168.0,0.00027718,2]
[400597312,1767738641472,-154.52,0.00027722,2]
[400597313,1767738641481,-665.0,0.00027825,2]
[400597314,1767738641491,-168.0,0.00027835,2]
[400597315,1767738641500,-442.27,0.00027843,2]
[400597316,1767738641509,-250.0,0.00027945,5]
[400597317,1767738641518,-665.0,0.00027956,2]
[400597318,1767738641527,-292.59,0.00027967,2]
[400597319,1767738641536,-999.01,0.00028,15]
[400597320,1767738641545,-2341.0212,0.00028,60]
[400597321,1767738641554,-2973.0,0.00028009,2]
[400597322,1767738641563,-168.0,0.00028202,2]
[400597323,1767738641572,-168.0,0.00028206,2]
[400597324,1767738641582,-168.0,0.00028336,2]
[400597325,1767738641592,-167.87682571,0.00028362,2]
[400597326,1767738641601,-168.0,0.00028393,2]
[400597327,1767738641611,-300.0,0.00028399,10]
[400597328,1767738641620,-350.0,0.00028493,5]
[400597329,1767738641636,-168.0,0.00028639,2]
[400597330,1767738641645,-168.0,0.00028661,2]
[400597331,1767738641654,-665.0,0.00028726,2]
[400597332,1767738641663,-1994.8,0.00028831,2]
[400597333,1767738641674,-87743.27,0.000289,2]
[400597334,1767738641683,-387.66807987,0.00028942,7]
[400597335,1767738641692,-4101.09,0.00029,7]
[400597336,1767738641703,-665.0,0.00029026,2]
[400597337,1767738641712,-450.0,0.00029041,5]
[400597338,1767738641721,-154.52,0.00029042,2]
[400597339,1767738641731,-8526.77,0.00029268,2]
[400597340,1767738641739,-665.0,0.00029497,2]
[400597341,1767738641748,-13232.69191786,0.000295,7]
[400597342,1767738641757,-432.31509578,0.00029589,5]
[400597343,1767738641766,-665.0,0.00029664,2]
[400597344,1767738641775,-168.0,0.0002967,2]
[400597345,1767738641784,-300.0,0.00029715,10]
[400597346,1767738641794,-341824.2617415,0.00029716,2]
[400597347,1767738641803,-11918.693954,0.00029716,2]
[400597348,1767738641812,-502.0,0.00029877,2]
[400597349,1767738641822,-6871.60395407,0.0003,21]
[400597350,1767738641831,-594.00563073,0.0003,30]
[400597351,1767738641840,-2000.0,0.0003,14]
[400597352,1767738641849,-264.74167311,0.0003,30]
[400597353,1767738641858,-606.12982272,0.0003,30]
[400597354,1767738641867,-400.0,0.0003,20]
[400597355,1767738641877,-510.57610098,0.0003,30]
[400597356,1767738641887,-152.21140479,0.0003,2]
[400597357,1767738641897,-816.71249994,0.0003,5]
[400597358,1767738641906,-195.20727951,0.0003013,30]
[400597359,1767738641917,-1504.03248546,0.0003013,5]
[400597360,1767738641926,-300.0,0.0003013,30]
[400597361,1767738641935,-500.0,0.00030136,30]
[400597362,1767738641944,-598.97290422,0.00030136,30]
[400597363,1767738641953,-187.15,0.00030137,2]
[400597364,1767738641962,-1040.62,0.000302,30]
[400597365,1767738641973,-154.52,0.00030362,2]
[400597366,1767738641984,-3907.78036058,0.00030708,2]
[400597367,1767738641994,-188.35701994,0.00030758,2]
[400597368,1767738642003,-250.0,0.000308,30]
[400597369,1767738642013,-344.39263038,0.00030858,2]
[400597370,1767738642023,-1994.8,0.00030925,2]
[400597371,1767738642035,-341.57506105,0.00031,5]
[400597372,1767738642045,-87743.27,0.00031,2]
[400597373,1767738642055,-292.59,0.00031233,2]
[400597374,1767738642066,-157.50335283,0.00031241,2]
[400597375,1767738642076,-4101.09,0.000313,7]
[400597376,1767738642088,-502.0,0.00031309,3]
[400597377,1767738642098,-1263.39044686,0.000314,30]
[400597378,1767738642107,-8301.84221811,0.0003143,4]
[400597379,1767738642117,-151.0,0.00031507,31]
[400597380,1767738642127,-993.472291,0.00031507,31]
[400597381,1767738642137,-2698.972455,0.00031507,31]
[400597382,1767738642147,-2698.972455,0.00031507,31]
[400597383,1767738642157,-993.472291,0.00031507,31]
[400597384,1767738642166,-151.0,0.00031507,31]
[400597385,1767738642178,-2698.972455,0.00031507,31]
[400597386,1767738642188,-151.0,0.00031507,31]
[400597387,1767738642197,-993.472291,0.00031507,31]
[400597388,1767738642206,-158.915095,0.00031507,31]
[400597389,1767738642215,-2698.972455,0.00031507,31]
[400597390,1767738642224,-552.599779,0.00031507,15]
[400597391,1767738642233,-242.109031,0.00031507,31]
[400597392,1767738642243,-552.599779,0.00031507,15]
[400597393,1767738642253,-242.109031,0.00031507,31]
[400597394,1767738642262,-993.472291,0.00031507,31]
[400597395,1767738642271,-552.599779,0.00031507,15]
[400597396,1767738642280,-242.109031,0.00031507,31]
[400597397,1767738642289,-552.599779,0.00031507,15]
[400597398,1767738642299,-242.109031,0.00031507,31]
[400597399,1767738642308,-151.0,0.00031507,31]
[400597400,1767738642317,-152.729497,0.00031507,31]
[400597401,1767738642328,-152.729497,0.00031507,31]
[400597402,1767738642337,-152.729497,0.00031507,31]
[400597403,1767738642347,-152.729497,0.00031507,31]
[400597404,1767738642356,-412.123505,0.00031507,31]